Workbook

Sheet Intro
C2: Pro Forma Financial Model
C5: Financial Analysis of PV Systems
C6: This tool allows evaluating the financial viability as well as assessing the levelized cost of electricity produced of solar power projects. Data needs to be entered in cells marked yellow in the sheet "Cash Flow". Cells marked with other colors as well as the time series will be automatically calculated. Inputs: A very important parameter to asses the viability of a PV project is the specific system yield in kwh per Kwp installed. For the purpose of evaluating the energy production of photovoltaic systems the RETScreen Photovoltaic Project Model can be used. Photovoltaic systems are fairly simple, but the behaviour of its components is nonlinear and their interactions are complex. RETScreen uses simplified algorithms minimizing data input requirements while maintaining an acceptable level of accuracy and taking into consideration the main parameters (e.g. temperature and orientation effects). Another simulation software as PVSYST or PV*SOL the energy production of photovoltaic systems can be used also. The following steps to conduct the financial analysis of solar PV power projects will be: • Defining further technical parameters (Module degradation and inverter replacement time) • Identifying and entering the different expected costs and revenues; • Entering the important terms of a PPA contract to asses revenues (Retail Electricity price and Annual Price Escalator) • Tax relevant parameters (depreciation scheme, income taxes) as well as relevant macroeconomic parameters (inflation) • Financing structure and terms Regarding the financing structure it has been assumed that debt will be shared by a government supported loan by a development bank with favorable conditions and a second loan provided by a commercial bank). Debt Share between these 2 loans can be defined by the user. A debt service reserve account (“DSRA”) is maintained to ensure that the required funds for the upcoming capital and interest payments are available. Coverage and interest rate on this account are entered by the user. Outputs: The outputs of the model are financial indicators as well as costs of electricity produced as well as a sensitive analysis. Financial indicators are required by creditors as well as by investors. Creditors are mainly interested in ability of the project to fulfill annual debt service, which is reflected in the DSCR indicator provided. Investors are rather interested in the RoE (Equity-IRR) obtained by the project. In order to assess the competitiveness of the project the levelized cost of electricity (LCOE) is calculated, providing a common way to compare the cost of energy across technologies. Furthermore the required electricity price to obtain the RoE required by investors is calculating, providing a orientation to negotiate PPA terms. A good risk management tool is a sensitivity analysis. This exercise is carried out to identify the impact of different parameters on project results.

Sheet Cash Flow
B1: Pro Forma Financials PV Project | E1: User Inputs | F1: Calculated Inputs | G1: Output fields
B3: Project data | E3: Investment Costs | G3: [T$/kWp] | H3: [T$] | J3: Accounting and Tax | Y3: Note on FIT/PPA Price Determination
B4: Location | E4: Modules [T$] | G4: 1 | H4: =G4*systemSize -> 100 | J4: Corporate Income Tax [%] | M4: 0 | Y4: First of all, this economic valuation tool allows you to calculate the equity-IRR (as is) (see cell M24) under a given Feed-in-Tariff or power purchase agreement price (in $/MWh). A power purchase agreement price could be the result of a bidding process or direct negotiations with an off-taker. But you can also use this tool to look at it from a policy-maker's or regulator's perspective: If you want to calculate a Feed-in-Tariff, enter a realistic investor's expected equity-IRR (cell H24) and click on the Calculate FIT button below. The required FIT to obtain the expected equity-IRR is then calculated automatically after not more than a few seconds. (Minor rounding errors may occur in the iteration process.) If you want to verify your result, you can now enter this figure in cell C16, the equity-IRR (as is) should now be the same as the investor's expected equity-IRR. Of course, this procedure is the same if you look at it from an investor's perspective. If you want to calcuate the PPA price (e.g. a bidding price) that is required to achieve an expected equity-IRR, just follow the same procedure as above.
B5: Module technology | E5: Inverter [T$] | G5: 0.15 | H5: =G5*systemSize -> 15 | J5: Depreciation method | M5: linear
E6: Civil BOS [T$] | G6: 0.15 | H6: =G6*systemSize -> 15 | J6: Asset lifetime [years] | M6: 10
B7: Technical Parameters | E7: Electrical BOS [T$] | G7: 0.15 | H7: =G7*systemSize -> 15
B8: System Size (DC) [kWp] | C8: 100 | E8: Connection to Grid | G8: 0.1 | H8: =G8*systemSize -> 10 | J8: Financing
B9: Specific Yield [kWh/kWp] | C9: 900 | E9: Direct Project Costs | H9: =SUM(H4:H8)*(1+sensitivityEquipmentCost) -> 155 | J9: % Financed w/ equity [%] | L9: 0.5 | M9: =1-M10 -> 0.5
B10: Degradation Factor [%] | C10: 0.007 | E10: Project Mgmt&Eng. [T$] | G10: 0.15 | H10: =G10*$H$9 -> 23.25 | J10: % Financed w/ debt [%] | L10: =1-L9 -> 0.5 | M10: =L10*(1+sensitivityDebtShare) -> 0.5
B11: System lifetime / PPA Term [years] | C11: 20 | E11: Contingencies [T$] | G11: 0.05 | H11: =G11*$H$9 -> 7.75 | L11: Loan 1 | M11: Loan 2
B12: Inverter lifetime [years] | C12: 10 | E12: Construction Insurance [T$] | H12: 0 | J12: Debt Share [%] | L12: 1 | M12: =1-L12 -> 0
B13: Inverter warranty [years] | C13: 2 | E13: Basic Project Costs | H13: =SUM(H9:H11) -> 186 | J13: Interest Rate [%] | L13: 0.02 | M13: 0.05
E14: IDC [T$] | G14: 0 | H14: =G14*$H$13 -> 0 | J14: Debt Period [years] | L14: 18 | M14: =L14 -> 18
B15: Economic Aspects | E15: Up-front Fees [T$] | G15: 0 | H15: =G15*$H$13 -> 0 | J15: Cost of Debt [%] | M15: =L12*L13+M12*M13+(sensitivityInterestRate/10000) -> 0.02
B16: FIT/PPA price period 1 [$/MWh] | C16: 100 | E16: Total Investment Costs [T$] | H16: =SUM(H13:H15) -> 186 | J16: Cost of equity (expected equity-IRR) [%] | M16: =capitalCost -> 0.05
B17: End year period 1 | C17: 20 | E17: Spec. Investment Costs [$/kW] | H17: =H16*1000/systemSize -> 1860 | J17: WACC [%] | M17: =(1-$M$4)*M10*M15+(1-M10)*H24 -> 0.035
B18: FIT/PPA price period 2 [$/MWh] | C18: 0 | E18: Annual Operation and Maintenance Costs | J18: Year Debt Placed / Grace Period | M18: 0
B19: Annual FIT/PPA price escalator [%] | C19: 0 | E19: O&M (in % of Direct Proj. Costs) | G19: 0.02 | H19: =G19*H9 -> 3.1 | J19: Interest Rate on DSRA [%] | M19: 0.02
B20: Inflation Rate Increase [%] | C20: 0 | E20: Land Lease [T$/MWp*a] | G20: 1 | H20: =G20*systemSize/1000 -> 0.1 | J20: DSRA [%] | M20: 0.5
B23: Levelised Cost of Electricity | E23: FIT / PPA Price Determination | J23: Financial Indicators output
B24: LCOE [$/MWh] | C24: =10^3*SUMPRODUCT($E$81:$AI$81,E83:AI83)/SUMPRODUCT($E$81:$AI$81,E31:AI31) -> 201.8987977 | E24: Investor's expected equity-IRR | H24: 0.05 | J24: Equity-IRR (as is) | M24: =IRR(E53:AI53) -> -0.1582239108
H25: 203.7795201 | J25: Deviation equity IRR (as is) from expected IRR | M25: =equityIRR-capitalCost -> -0.2082239108
J26: Ø-DSCR | M26: =AVERAGE(F54:AI54) -> 0.7067583171
E27: Read note on FIT/Bidding Price Determination | J27: Min-DSCR | M27: =MIN(F54:AI54) -> -1.924678205
J28: Year Min-DSCR | M28: =MATCH(M27,F54:AI54,-1) -> 10
B30: Year | E30: 0 | F30: 1 | G30: 2 | H30: 3 | I30: 4 | J30: 5 | K30: 6 | L30: 7 | M30: 8 | N30: 9 | O30: 10 | P30: 11 | Q30: 12 | R30: 13 | S30: 14 | T30: 15 | U30: 16 | V30: 17 | W30: 18 | X30: 19 | Y30: 20 | Z30: 21 | AA30: 22 | AB30: 23 | AC30: 24 | AD30: 25 | AE30: 26 | AF30: 27 | AG30: 28 | AH30: 29 | AI30: 30
B31: Energy Production | C31: MWh | D31: =systemSize*C9*(1+sensitivityEnergyYield)/1000 -> 90 | F31: =IF($C$11>F30,D31,0) -> 90 | G31: =IF($C$11>=G30,F31*(1-$C$10),0) -> 89.37 | H31: 88.74441 | I31: 88.12319913 | J31: 87.50633674 | K31: 86.89379238 | L31: 86.28553583 | M31: 85.68153708 | N31: 85.08176632 | O31: 84.48619396 | P31: 83.8947906 | Q31: 83.30752707 | R31: 82.72437438 | S31: 82.14530376 | T31: 81.57028663 | U31: 80.99929462 | V31: 80.43229956 | W31: 79.86927346 | X31: 79.31018855 | Y31: 78.75501723 | Z31: 0 | AA31: 0 | AB31: 0 | AC31: 0 | AD31: 0 | AE31: 0 | AF31: 0 | AG31: 0 | AH31: 0 | AI31: 0
B32: Flag project lifetime | F32: =IF(F30<=$C$11,1,0) -> 1 | G32: =IF(G30<=$C$11,1,0) -> 1 | H32: 1 | I32: 1 | J32: 1 | K32: 1 | L32: 1 | M32: 1 | N32: 1 | O32: 1 | P32: 1 | Q32: 1 | R32: 1 | S32: 1 | T32: 1 | U32: 1 | V32: 1 | W32: 1 | X32: 1 | Y32: 1 | Z32: 0 | AA32: 0 | AB32: 0 | AC32: 0 | AD32: 0 | AE32: 0 | AF32: 0 | AG32: 0 | AH32: 0 | AI32: 0
B33: Flag period 1 | F33: =IF(F30<=$C$17,1,0) -> 1 | G33: =IF(G30<=$C$17,1,0) -> 1 | H33: 1 | I33: 1 | J33: 1 | K33: 1 | L33: 1 | M33: 1 | N33: 1 | O33: 1 | P33: 1 | Q33: 1 | R33: 1 | S33: 1 | T33: 1 | U33: 1 | V33: 1 | W33: 1 | X33: 1 | Y33: 1 | Z33: 0 | AA33: 0 | AB33: 0 | AC33: 0 | AD33: 0 | AE33: 0 | AF33: 0 | AG33: 0 | AH33: 0 | AI33: 0
B34: Flag period 2 | F34: =IF(F30>$C$17,1,0) -> 0 | G34: =IF(G30>$C$17,1,0) -> 0 | H34: 0 | I34: 0 | J34: 0 | K34: 0 | L34: 0 | M34: 0 | N34: 0 | O34: 0 | P34: 0 | Q34: 0 | R34: 0 | S34: 0 | T34: 0 | U34: 0 | V34: 0 | W34: 0 | X34: 0 | Y34: 0 | Z34: 1 | AA34: 1 | AB34: 1 | AC34: 1 | AD34: 1 | AE34: 1 | AF34: 1 | AG34: 1 | AH34: 1 | AI34: 1
B35: Electricity Price | C35: $/MWh | F35: =F32*(F33*electricityPrice*(1+$C$19)^(F30-1)+F34*$C$18) -> 100 | G35: 100 | H35: 100 | I35: 100 | J35: 100 | K35: 100 | L35: 100 | M35: 100 | N35: 100 | O35: 100 | P35: 100 | Q35: 100 | R35: 100 | S35: 100 | T35: 100 | U35: 100 | V35: 100 | W35: 100 | X35: 100 | Y35: 100 | Z35: 0 | AA35: 0 | AB35: 0 | AC35: 0 | AD35: 0 | AE35: 0 | AF35: 0 | AG35: 0 | AH35: 0 | AI35: 0
B36: Electricity income Revenue | C36: USD '000 | F36: =(F31/10^3)*F35 -> 9 | G36: =(G31/10^3)*G35 -> 8.937 | H36: 8.874441 | I36: 8.812319913 | J36: 8.750633674 | K36: 8.689379238 | L36: 8.628553583 | M36: =(M31/10^3)*M35 -> 8.568153708 | N36: 8.508176632 | O36: 8.448619396 | P36: 8.38947906 | Q36: 8.330752707 | R36: 8.272437438 | S36: 8.214530376 | T36: 8.157028663 | U36: 8.099929462 | V36: 8.043229956 | W36: 7.986927346 | X36: 7.931018855 | Y36: 7.875501723 | Z36: 0 | AA36: 0 | AB36: 0 | AC36: 0 | AD36: 0 | AE36: 0 | AF36: 0 | AG36: 0 | AH36: 0 | AI36: 0
B37: + Salvage Value | C37: USD '000
B38: + Interest income | C38: USD '000 | F38: =$M$19*E52 -> 0 | G38: 0.062032955 | H38: 0.062032955 | I38: 0.062032955 | J38: 0.062032955 | K38: 0.062032955 | L38: 0.062032955 | M38: 0.062032955 | N38: 0.062032955 | O38: 0.062032955 | P38: 0.062032955 | Q38: 0.062032955 | R38: 0.062032955 | S38: 0.062032955 | T38: 0.062032955 | U38: 0.062032955 | V38: 0.062032955 | W38: 0.062032955 | X38: 0 | Y38: 0 | Z38: 0 | AA38: 0 | AB38: 0 | AC38: 0 | AD38: 0 | AE38: 0 | AF38: 0 | AG38: 0 | AH38: 0 | AI38: 0
B39: Total Income | C39: USD '000 | F39: =SUM(F36:F38) -> 9 | G39: =SUM(G36:G38) -> 8.999032955 | H39: 8.936473955 | I39: 8.874352868 | J39: 8.812666629 | K39: 8.751412193 | L39: 8.690586538 | M39: =SUM(M36:M38) -> 8.630186663 | N39: 8.570209587 | O39: 8.510652351 | P39: 8.451512015 | Q39: 8.392785662 | R39: 8.334470393 | S39: 8.276563331 | T39: 8.219061618 | U39: 8.161962417 | V39: 8.105262911 | W39: 8.048960301 | X39: 7.931018855 | Y39: 7.875501723 | Z39: 0 | AA39: 0 | AB39: 0 | AC39: 0 | AD39: 0 | AE39: 0 | AF39: 0 | AG39: 0 | AH39: 0 | AI39: 0
B40: - O&M Expenses, incl. land lease | C40: USD '000 | F40: =IF($C$11>F30,-(H19+H20)*(1+sentitivityOpEx),0) -> -3.2 | G40: =IF($C$11>F30,F40*(1+$C$20),0) -> -3.2 | H40: -3.2 | I40: -3.2 | J40: -3.2 | K40: -3.2 | L40: -3.2 | M40: -3.2 | N40: -3.2 | O40: -3.2 | P40: -3.2 | Q40: -3.2 | R40: -3.2 | S40: -3.2 | T40: -3.2 | U40: -3.2 | V40: -3.2 | W40: -3.2 | X40: -3.2 | Y40: -3.2 | Z40: 0 | AA40: 0 | AB40: 0 | AC40: 0 | AD40: 0 | AE40: 0 | AF40: 0 | AG40: 0 | AH40: 0 | AI40: 0
B41: - Inverter Replacement Expenses | C41: USD '000 | F41: =IF($C$11>F30,IF(MOD(F30,$C$12)=0,-$H$5*(1+$G$10)*(F30>C13),0),0) -> 0 | G41: =IF($C$11>G30,IF(MOD(G30,$C$12)=0,-$H$5*(1+$G$10)*(G30>D14),0),0) -> 0 | H41: =IF($C$11>H30,IF(MOD(H30,$C$12)=0,-$H$5*(1+$G$10)*(H30>E13),0),0) -> 0 | I41: =IF($C$11>I30,IF(MOD(I30,$C$12)=0,-$H$5*(1+$G$10)*(I30>F13),0),0) -> 0 | J41: =IF($C$11>J30,IF(MOD(J30,$C$12)=0,-$H$5*(1+$G$10)*(J30>#REF!),0),0) -> 0 | K41: =IF($C$11>K30,IF(MOD(K30,$C$12)=0,-$H$5*(1+$G$10)*(K30>G13),0),0) -> 0 | L41: =IF($C$11>L30,IF(MOD(L30,$C$12)=0,-$H$5*(1+$G$10)*(L30>H13),0),0) -> 0 | M41: =IF($C$11>M30,IF(MOD(M30,$C$12)=0,-$H$5*(1+$G$10)*(M30>#REF!),0),0) -> 0 | N41: =IF($C$11>N30,IF(MOD(N30,$C$12)=0,-$H$5*(1+$G$10)*(N30>J15),0),0) -> 0 | O41: =IF($C$11>O30,IF(MOD(O30,$C$12)=0,-$H$5*(1+$G$10)*(O30>K12),0),0) -> -17.25 | P41: =IF($C$11>P30,IF(MOD(P30,$C$12)=0,-$H$5*(1+$G$10)*(P30>L12),0),0) -> 0 | Q41: =IF($C$11>Q30,IF(MOD(Q30,$C$12)=0,-$H$5*(1+$G$10)*(Q30>C13),0),0) -> 0 | R41: =IF($C$11>R30,IF(MOD(R30,$C$12)=0,-$H$5*(1+$G$10)*(R30>M12),0),0) -> 0 | S41: =IF($C$11>S30,IF(MOD(S30,$C$12)=0,-$H$5*(1+$G$10)*(S30>O13),0),0) -> 0 | T41: =IF($C$11>T30,IF(MOD(T30,$C$12)=0,-$H$5*(1+$G$10)*(T30>Q14),0),0) -> 0 | U41: 0 | V41: 0 | W41: 0 | X41: 0 | Y41: 0 | Z41: 0 | AA41: 0 | AB41: 0 | AC41: 0 | AD41: 0 | AE41: 0 | AF41: 0 | AG41: 0 | AH41: 0 | AI41: 0
B42: - Total Operating Costs | C42: USD '000 | F42: =SUM(F40:F41) -> -3.2 | G42: -3.2 | H42: -3.2 | I42: -3.2 | J42: -3.2 | K42: -3.2 | L42: -3.2 | M42: -3.2 | N42: -3.2 | O42: -20.45 | P42: -3.2 | Q42: -3.2 | R42: -3.2 | S42: -3.2 | T42: -3.2 | U42: -3.2 | V42: -3.2 | W42: -3.2 | X42: -3.2 | Y42: -3.2 | Z42: 0 | AA42: 0 | AB42: 0 | AC42: 0 | AD42: 0 | AE42: 0 | AF42: 0 | AG42: 0 | AH42: 0 | AI42: 0
B43: EBITDA (Operating Income) | C43: USD '000 | F43: =F39+F42 -> 5.8 | G43: 5.799032955 | H43: 5.736473955 | I43: 5.674352868 | J43: 5.612666629 | K43: 5.551412193 | L43: 5.490586538 | M43: 5.430186663 | N43: 5.370209587 | O43: -11.93934765 | P43: 5.251512015 | Q43: 5.192785662 | R43: 5.134470393 | S43: 5.076563331 | T43: 5.019061618 | U43: 4.961962417 | V43: 4.905262911 | W43: 4.848960301 | X43: 4.731018855 | Y43: 4.675501723 | Z43: 0 | AA43: 0 | AB43: 0 | AC43: 0 | AD43: 0 | AE43: =AE39-AE42 -> 0 | AF43: =AF39-AF42 -> 0 | AG43: =AG39-AG42 -> 0 | AH43: =AH39-AH42 -> 0 | AI43: =AI39-AI42 -> 0
B44: Income Tax | C44: USD '000 | F44: =F78 -> 0 | G44: =G78 -> 0 | H44: 0 | I44: 0 | J44: 0 | K44: 0 | L44: 0 | M44: =M78 -> 0 | N44: 0 | O44: 0 | P44: 0 | Q44: 0 | R44: 0 | S44: 0 | T44: 0 | U44: 0 | V44: 0 | W44: 0 | X44: 0 | Y44: 0 | Z44: 0 | AA44: 0 | AB44: 0 | AC44: 0 | AD44: 0 | AE44: 0 | AF44: 0 | AG44: 0 | AH44: 0 | AI44: 0
B45: EBITDA after Tax | C45: USD '000 | F45: =F43+F44 -> 5.8 | G45: =G43+G44 -> 5.799032955 | H45: 5.736473955 | I45: 5.674352868 | J45: 5.612666629 | K45: 5.551412193 | L45: 5.490586538 | M45: =M43+M44 -> 5.430186663 | N45: 5.370209587 | O45: -11.93934765 | P45: 5.251512015 | Q45: 5.192785662 | R45: 5.134470393 | S45: 5.076563331 | T45: 5.019061618 | U45: 4.961962417 | V45: 4.905262911 | W45: 4.848960301 | X45: 4.731018855 | Y45: 4.675501723 | Z45: 0 | AA45: 0 | AB45: 0 | AC45: 0 | AD45: 0 | AE45: 0 | AF45: 0 | AG45: 0 | AH45: 0 | AI45: 0
B46: Redemption | C46: USD '000 | F46: =-F62 -> -4.3432955 | G46: =-G62 -> -4.43016141 | H46: -4.518764638 | I46: -4.609139931 | J46: -4.70132273 | K46: -4.795349184 | L46: -4.891256168 | M46: =-M62 -> -4.989081291 | N46: -5.088862917 | O46: -5.190640175 | P46: -5.294452979 | Q46: -5.400342038 | R46: -5.508348879 | S46: -5.618515857 | T46: -5.730886174 | U46: -5.845503897 | V46: -5.962413975 | W46: -6.081662255 | X46: 0 | Y46: 0 | Z46: 0 | AA46: 0 | AB46: 0 | AC46: 0 | AD46: 0 | AE46: 0 | AF46: 0 | AG46: 0 | AH46: 0 | AI46: 0
B47: Interest Expenses | C47: USD '000 | F47: =-F61 -> -1.86 | G47: =-G61 -> -1.77313409 | H47: -1.684530862 | I47: -1.594155569 | J47: -1.50197277 | K47: -1.407946316 | L47: -1.312039332 | M47: =-M61 -> -1.214214209 | N47: -1.114432583 | O47: -1.012655325 | P47: -0.9088425211 | Q47: -0.8029534615 | R47: -0.6949466208 | S47: -0.5847796432 | T47: -0.472409326 | U47: -0.3577916026 | V47: -0.2408815246 | W47: -0.1216332451 | X47: 0 | Y47: 0 | Z47: 0 | AA47: 0 | AB47: 0 | AC47: 0 | AD47: 0 | AE47: 0 | AF47: 0 | AG47: 0 | AH47: 0 | AI47: 0
B48: Total Debt Service | C48: USD '000 | F48: =F46+F47 -> -6.2032955 | G48: =G46+G47 -> -6.2032955 | H48: -6.2032955 | I48: -6.2032955 | J48: -6.2032955 | K48: -6.2032955 | L48: -6.2032955 | M48: =M46+M47 -> -6.2032955 | N48: -6.2032955 | O48: -6.2032955 | P48: -6.2032955 | Q48: -6.2032955 | R48: -6.2032955 | S48: -6.2032955 | T48: -6.2032955 | U48: -6.2032955 | V48: -6.2032955 | W48: -6.2032955 | X48: 0 | Y48: 0 | Z48: 0 | AA48: 0 | AB48: 0 | AC48: 0 | AD48: 0 | AE48: 0 | AF48: 0 | AG48: 0 | AH48: 0 | AI48: 0
B49: Cash Before DSRA | C49: USD '000 | F49: =F45+F48 -> -0.4032955 | G49: =G45+G48 -> -0.404262545 | H49: -0.466821545 | I49: -0.528942632 | J49: -0.5906288714 | K49: -0.6518833071 | L49: -0.7127089618 | M49: =M45+M48 -> -0.7731088369 | N49: -0.8330859128 | O49: -18.14264315 | P49: -0.951783485 | Q49: -1.010509838 | R49: -1.068825107 | S49: -1.126732169 | T49: -1.184233882 | U49: -1.241333083 | V49: -1.298032589 | W49: -1.354335199 | X49: 4.731018855 | Y49: 4.675501723 | Z49: 0 | AA49: 0 | AB49: 0 | AC49: 0 | AD49: 0 | AE49: 0 | AF49: 0 | AG49: 0 | AH49: 0 | AI49: 0
B50: Cash incl. DSRA | C50: USD '000 | F50: =F49+E52 -> -0.4032955 | G50: =G49+F52 -> 2.697385205 | H50: =H49+G52 -> 2.634826205 | I50: 2.572705118 | J50: 2.511018879 | K50: 2.449764443 | L50: =L49+K52 -> 2.388938788 | M50: =M49+L52 -> 2.328538913 | N50: 2.268561837 | O50: =O49+N52 -> -15.0409954 | P50: 2.149864265 | Q50: 2.091137912 | R50: 2.032822643 | S50: 1.974915581 | T50: 1.917413868 | U50: 1.860314667 | V50: 1.803615161 | W50: 1.747312551 | X50: 4.731018855 | Y50: 4.675501723 | Z50: 0 | AA50: 0 | AB50: 0 | AC50: 0 | AD50: 0 | AE50: 0 | AF50: 0 | AG50: 0 | AH50: 0 | AI50: 0
B51: DSRA Target | C51: USD '000 | F51: =-G48*$M$20 -> 3.10164775 | G51: 3.10164775 | H51: 3.10164775 | I51: 3.10164775 | J51: 3.10164775 | K51: 3.10164775 | L51: 3.10164775 | M51: 3.10164775 | N51: 3.10164775 | O51: 3.10164775 | P51: 3.10164775 | Q51: 3.10164775 | R51: 3.10164775 | S51: 3.10164775 | T51: 3.10164775 | U51: 3.10164775 | V51: 3.10164775 | W51: 0 | X51: 0 | Y51: 0 | Z51: 0 | AA51: 0 | AB51: 0 | AC51: 0 | AD51: 0 | AE51: 0 | AF51: 0 | AG51: 0 | AH51: 0 | AI51: 0
B52: DSRA Actual | C52: USD '000 | F52: =IF(F49<0,MIN(E52,F51),MIN(E52+F49,F51)) -> 3.10164775 | G52: =IF(G49<0,MIN(F52,G51),MIN(F52+G49,G51)) -> 3.10164775 | H52: 3.10164775 | I52: 3.10164775 | J52: 3.10164775 | K52: 3.10164775 | L52: 3.10164775 | M52: =IF(M49<0,MIN(L52,M51),MIN(L52+M49,M51)) -> 3.10164775 | N52: 3.10164775 | O52: =IF(O49<0,MIN(N52,O51),MIN(N52+O49,O51)) -> 3.10164775 | P52: 3.10164775 | Q52: 3.10164775 | R52: 3.10164775 | S52: 3.10164775 | T52: 3.10164775 | U52: 3.10164775 | V52: 3.10164775 | W52: 0 | X52: 0 | Y52: 0 | Z52: 0 | AA52: 0 | AB52: 0 | AC52: 0 | AD52: 0 | AE52: 0 | AF52: 0 | AG52: 0 | AH52: 0 | AI52: 0
B53: Total Cash Flow | C53: USD '000 | E53: =-$M$9*H16 -> -93 | F53: =F50-F52 -> -3.50494325 | G53: =G50-G52 -> -0.404262545 | H53: =H50-H52 -> -0.466821545 | I53: -0.528942632 | J53: -0.5906288714 | K53: -0.6518833071 | L53: -0.7127089618 | M53: -0.7731088369 | N53: -0.8330859128 | O53: -18.14264315 | P53: -0.951783485 | Q53: -1.010509838 | R53: -1.068825107 | S53: -1.126732169 | T53: -1.184233882 | U53: -1.241333083 | V53: -1.298032589 | W53: 1.747312551 | X53: 4.731018855 | Y53: 4.675501723 | Z53: 0 | AA53: 0 | AB53: 0 | AC53: 0 | AD53: 0 | AE53: 0 | AF53: 0 | AG53: 0 | AH53: 0 | AI53: 0
B54: DSCR | F54: =IF(F48>-0.1,"n/n",F45/-F48) -> 0.9349868953 | G54: =IF(G48>-0.1,"n/n",G45/-G48) -> 0.9348310031 | H54: 0.9247462022 | I54: 0.9147319949 | J54: 0.9047878871 | K54: 0.894913388 | L54: 0.8851080104 | M54: =IF(M48>-0.1,"n/n",M45/-M48) -> 0.8753712705 | N54: 0.8657026877 | O54: -1.924678205 | P54: 0.8465680887 | Q54: 0.8371011282 | R54: 0.8277004364 | S54: 0.8183655495 | T54: 0.8090960068 | U54: 0.7998913509 | V54: 0.7907511275 | W54: 0.7816748858 | X54: n/n | Y54: n/n | Z54: n/n | AA54: n/n | AB54: n/n | AC54: n/n | AD54: n/n | AE54: n/n | AF54: n/n | AG54: n/n | AH54: n/n | AI54: n/n
B55: DSCR (incl. DSRA) -not included yet-
B57: Debt Schedule | E57: =MAX(E30-$M$18,0) -> 0 | F57: =MAX(F30-$M$18,0) -> 1 | G57: 2 | H57: 3 | I57: 4 | J57: 5 | K57: 6 | L57: 7 | M57: 8 | N57: 9 | O57: 10 | P57: 11 | Q57: 12 | R57: 13 | S57: 14 | T57: 15 | U57: 16 | V57: 17 | W57: 18 | X57: 19 | Y57: 20 | Z57: 21 | AA57: 22 | AB57: 23 | AC57: 24 | AD57: 25 | AE57: 26 | AF57: 27 | AG57: 28 | AH57: 29 | AI57: 30
B58: Debt Term Flag | C58: USD '000 | F58: =IF(F60>0, 1, 0) -> 1 | G58: =IF(G60>0, 1, 0) -> 1 | H58: 1 | I58: 1 | J58: 1 | K58: 1 | L58: 1 | M58: =IF(M60>0, 1, 0) -> 1 | N58: 1 | O58: 1 | P58: 1 | Q58: 1 | R58: 1 | S58: 1 | T58: 1 | U58: 1 | V58: 1 | W58: 1 | X58: 0 | Y58: 0 | Z58: 0 | AA58: 0 | AB58: 0 | AC58: 0 | AD58: 0 | AE58: 0 | AF58: 0 | AG58: 0 | AH58: 0 | AI58: 0
B59: Beginning Balance | C59: USD '000 | D59: =-M10*H13 -> -93 | F59: =E63 -> 93 | G59: =F63 -> 88.6567045 | H59: 84.22654309 | I59: 79.70777845 | J59: 75.09863852 | K59: 70.39731579 | L59: 65.60196661 | M59: =L63 -> 60.71071044 | N59: 55.72162915 | O59: =N63 -> 50.63276623 | P59: 45.44212606 | Q59: 40.14767308 | R59: 34.74733104 | S59: 29.23898216 | T59: 23.6204663 | U59: 17.88958013 | V59: 12.04407623 | W59: 6.081662255 | X59: -3.463895837e-14 | Y59: -3.463895837e-14 | Z59: -3.463895837e-14 | AA59: -3.463895837e-14 | AB59: -3.463895837e-14 | AC59: -3.463895837e-14 | AD59: -3.463895837e-14 | AE59: -3.463895837e-14 | AF59: -3.463895837e-14 | AG59: -3.463895837e-14 | AH59: -3.463895837e-14 | AI59: -3.463895837e-14
B60: Debt Service | C60: USD '000 | F60: =IF(AND(F57>0,$L$14>=F57),-PMT($M$15,$L$14,-$D$59),0) -> 6.2032955 | G60: 6.2032955 | H60: 6.2032955 | I60: 6.2032955 | J60: 6.2032955 | K60: 6.2032955 | L60: 6.2032955 | M60: 6.2032955 | N60: 6.2032955 | O60: 6.2032955 | P60: 6.2032955 | Q60: 6.2032955 | R60: 6.2032955 | S60: 6.2032955 | T60: 6.2032955 | U60: 6.2032955 | V60: 6.2032955 | W60: 6.2032955 | X60: 0 | Y60: 0 | Z60: 0 | AA60: 0 | AB60: 0 | AC60: 0 | AD60: 0 | AE60: 0 | AF60: 0 | AG60: 0 | AH60: 0 | AI60: 0
B61: Interest | C61: USD '000 | F61: =IF(AND(F57>0,$L$14>=F57),F59*$M$15,0) -> 1.86 | G61: 1.77313409 | H61: 1.684530862 | I61: 1.594155569 | J61: 1.50197277 | K61: 1.407946316 | L61: 1.312039332 | M61: 1.214214209 | N61: 1.114432583 | O61: 1.012655325 | P61: 0.9088425211 | Q61: 0.8029534615 | R61: 0.6949466208 | S61: 0.5847796432 | T61: 0.472409326 | U61: 0.3577916026 | V61: 0.2408815246 | W61: 0.1216332451 | X61: 0 | Y61: 0 | Z61: 0 | AA61: 0 | AB61: 0 | AC61: 0 | AD61: 0 | AE61: 0 | AF61: 0 | AG61: 0 | AH61: 0 | AI61: 0
B62: Principal | C62: USD '000 | F62: =F60-F61 -> 4.3432955 | G62: =G60-G61 -> 4.43016141 | H62: 4.518764638 | I62: 4.609139931 | J62: 4.70132273 | K62: 4.795349184 | L62: 4.891256168 | M62: =M60-M61 -> 4.989081291 | N62: 5.088862917 | O62: 5.190640175 | P62: 5.294452979 | Q62: 5.400342038 | R62: 5.508348879 | S62: 5.618515857 | T62: 5.730886174 | U62: 5.845503897 | V62: 5.962413975 | W62: 6.081662255 | X62: 0 | Y62: 0 | Z62: 0 | AA62: 0 | AB62: 0 | AC62: 0 | AD62: 0 | AE62: 0 | AF62: 0 | AG62: 0 | AH62: 0 | AI62: 0
B63: Ending Balance | C63: USD '000 | E63: =IF(F57=1, IF($L$14>=E57,$M$10*$H$13,0), E59-E62) -> 93 | F63: =IF(G57=1, IF($L$14>=F57,$M$10*$H$13,0), F59-F62) -> 88.6567045 | G63: 84.22654309 | H63: 79.70777845 | I63: 75.09863852 | J63: 70.39731579 | K63: 65.60196661 | L63: 60.71071044 | M63: 55.72162915 | N63: 50.63276623 | O63: 45.44212606 | P63: 40.14767308 | Q63: 34.74733104 | R63: 29.23898216 | S63: 23.6204663 | T63: 17.88958013 | U63: 12.04407623 | V63: 6.081662255 | W63: -3.463895837e-14 | X63: -3.463895837e-14 | Y63: -3.463895837e-14 | Z63: -3.463895837e-14 | AA63: -3.463895837e-14 | AB63: -3.463895837e-14 | AC63: -3.463895837e-14 | AD63: -3.463895837e-14 | AE63: -3.463895837e-14 | AF63: -3.463895837e-14 | AG63: -3.463895837e-14 | AH63: -3.463895837e-14 | AI63: -3.463895837e-14
B65: Debt Service Reserve Account (only plausibility test) | F65: 1 | G65: 2 | H65: 3 | I65: 4 | J65: 5 | K65: 6 | L65: 7 | M65: 8 | N65: 9 | O65: 10 | P65: 11 | Q65: 12 | R65: 13 | S65: 14 | T65: 15 | U65: 16 | V65: 17 | W65: 18 | X65: 19 | Y65: 20 | Z65: 21 | AA65: 22 | AB65: 23 | AC65: 24 | AD65: 25 | AE65: 26 | AF65: 27 | AG65: 28 | AH65: 29 | AI65: 30
B66: Required debt service reserve | C66: USD '000 | E66: =-M20*F48 -> 3.10164775
B67: Opening Balance | C67: USD '000 | E67: 0 | F67: =E70*F58 -> 3.10164775 | G67: =F70*G58 -> 3.10164775 | H67: 3.10164775 | I67: 3.10164775 | J67: 3.10164775 | K67: 3.10164775 | L67: 3.10164775 | M67: 3.10164775 | N67: 3.10164775 | O67: 3.10164775 | P67: 3.10164775 | Q67: 3.10164775 | R67: 3.10164775 | S67: 3.10164775 | T67: 3.10164775 | U67: 3.10164775 | V67: 3.10164775 | W67: 3.10164775 | X67: 0 | Y67: 0 | Z67: 0 | AA67: 0 | AB67: 0 | AC67: 0 | AD67: 0 | AE67: 0 | AF67: 0 | AG67: 0 | AH67: 0 | AI67: 0
B68: Amount needed from reserve | C68: USD '000 | F68: =IF(F58=1,F49,0) -> -0.4032955 | G68: =IF(G58=1,G49,0) -> -0.404262545 | H68: =IF(H58=1,H49,0) -> -0.466821545 | I68: -0.528942632 | J68: -0.5906288714 | K68: -0.6518833071 | L68: -0.7127089618 | M68: -0.7731088369 | N68: -0.8330859128 | O68: -18.14264315 | P68: -0.951783485 | Q68: -1.010509838 | R68: -1.068825107 | S68: -1.126732169 | T68: -1.184233882 | U68: -1.241333083 | V68: -1.298032589 | W68: -1.354335199 | X68: 0 | Y68: 0 | Z68: 0 | AA68: 0 | AB68: 0 | AC68: 0 | AD68: 0 | AE68: 0 | AF68: 0 | AG68: 0 | AH68: 0 | AI68: 0
B69: Inflows to (-)/Outflows from account (+) | C69: USD '000 | E69: =IF(E67<E66,E67-E66,0) -> -3.10164775 | F69: =IF(G58>0,F68,F68+E70) -> -0.4032955 | G69: =IF(H58>0,G68,G68+F70) -> -0.404262545 | H69: -0.466821545 | I69: -0.528942632 | J69: -0.5906288714 | K69: -0.6518833071 | L69: -0.7127089618 | M69: -0.7731088369 | N69: -0.8330859128 | O69: -18.14264315 | P69: -0.951783485 | Q69: -1.010509838 | R69: -1.068825107 | S69: -1.126732169 | T69: -1.184233882 | U69: -1.241333083 | V69: -1.298032589 | W69: 1.747312551 | X69: 0 | Y69: 0 | Z69: 0 | AA69: 0 | AB69: 0 | AC69: 0 | AD69: 0 | AE69: 0 | AF69: 0 | AG69: 0 | AH69: 0 | AI69: 0
B70: Closing Balance | C70: USD '000 | E70: =E67-E69 -> 3.10164775 | F70: =F58*(F67+F68-F69) -> 3.10164775 | G70: =G58*(G67+G68-G69) -> 3.10164775 | H70: 3.10164775 | I70: 3.10164775 | J70: =J58*(J67+J68-J69) -> 3.10164775 | K70: =K58*(K67+K68-K69) -> 3.10164775 | L70: =L58*(L67+L68-L69) -> 3.10164775 | M70: =M58*(M67+M68-M69) -> 3.10164775 | N70: =N58*(N67+N68-N69) -> 3.10164775 | O70: =O58*(O67+O68-O69) -> 3.10164775 | P70: =P58*(P67+P68-P69) -> 3.10164775 | Q70: =Q58*(Q67+Q68-Q69) -> 3.10164775 | R70: =R58*(R67+R68-R69) -> 3.10164775 | S70: =S58*(S67+S68-S69) -> 3.10164775 | T70: =T58*(T67+T68-T69) -> 3.10164775 | U70: =U58*(U67+U68-U69) -> 3.10164775 | V70: =V58*(V67+V68-V69) -> 3.10164775 | W70: =W58*(W67+W68-W69) -> 0 | X70: =X58*(X67+X68-X69) -> 0 | Y70: =Y58*(Y67+Y68-Y69) -> 0 | Z70: =Z58*(Z67+Z68-Z69) -> 0 | AA70: =AA58*(AA67+AA68-AA69) -> 0 | AB70: =AB58*(AB67+AB68-AB69) -> 0 | AC70: =AC58*(AC67+AC68-AC69) -> 0 | AD70: =AD58*(AD67+AD68-AD69) -> 0 | AE70: =AE58*(AE67+AE68-AE69) -> 0 | AF70: =AF58*(AF67+AF68-AF69) -> 0 | AG70: =AG58*(AG67+AG68-AG69) -> 0 | AH70: =AH58*(AH67+AH68-AH69) -> 0 | AI70: =AI58*(AI67+AI68-AI69) -> 0
B72: Tax Calculation | E72: =E30 -> 0 | F72: =F30 -> 1 | G72: =G30 -> 2 | H72: 3 | I72: 4 | J72: 5 | K72: 6 | L72: 7 | M72: 8 | N72: 9 | O72: 10 | P72: 11 | Q72: 12 | R72: 13 | S72: 14 | T72: 15 | U72: 16 | V72: 17 | W72: 18 | X72: 19 | Y72: 20 | Z72: 21 | AA72: 22 | AB72: 23 | AC72: 24 | AD72: 25 | AE72: 26 | AF72: 27 | AG72: 28 | AH72: 29 | AI72: 30
B73: Depreciation cumulated | C73: USD '000 | F73: =SUM($F74:F74) -> -18.6 | G73: =SUM($F74:G74) -> -37.2 | H73: =SUM($F74:H74) -> -55.8 | I73: =SUM($F74:I74) -> -74.4 | J73: =SUM($F74:J74) -> -93 | K73: =SUM($F74:K74) -> -111.6 | L73: =SUM($F74:L74) -> -130.2 | M73: =SUM($F74:M74) -> -148.8 | N73: =SUM($F74:N74) -> -167.4 | O73: =SUM($F74:O74) -> -186 | P73: =SUM($F74:P74) -> -186 | Q73: =SUM($F74:Q74) -> -186 | R73: =SUM($F74:R74) -> -186 | S73: =SUM($F74:S74) -> -186 | T73: =SUM($F74:T74) -> -186 | U73: =SUM($F74:U74) -> -186 | V73: =SUM($F74:V74) -> -186 | W73: =SUM($F74:W74) -> -186 | X73: =SUM($F74:X74) -> -186 | Y73: =SUM($F74:Y74) -> -186 | Z73: =SUM($F74:Z74) -> -186 | AA73: =SUM($F74:AA74) -> -186 | AB73: =SUM($F74:AB74) -> -186 | AC73: =SUM($F74:AC74) -> -186 | AD73: =SUM($F74:AD74) -> -186 | AE73: =SUM($F74:AE74) -> -186 | AF73: =SUM($F74:AF74) -> -186 | AG73: =SUM($F74:AG74) -> -186 | AH73: =SUM($F74:AH74) -> -186 | AI73: =SUM($F74:AI74) -> -186
B74: Depreciation p.a. | C74: USD '000 | F74: =IF(F30<=$M$6,-$H$13/$M$6,0) -> -18.6 | G74: -18.6 | H74: -18.6 | I74: -18.6 | J74: -18.6 | K74: -18.6 | L74: -18.6 | M74: -18.6 | N74: -18.6 | O74: -18.6 | P74: 0 | Q74: 0 | R74: 0 | S74: 0 | T74: 0 | U74: 0 | V74: 0 | W74: 0 | X74: 0 | Y74: 0 | Z74: 0 | AA74: 0 | AB74: 0 | AC74: 0 | AD74: 0 | AE74: 0 | AF74: 0 | AG74: 0 | AH74: 0 | AI74: 0
B75: EBITDA - Depr. - Interest | C75: USD '000 | F75: =F43+F74+F47 -> -14.66 | G75: -14.57410113 | H75: -14.54805691 | I75: -14.5198027 | J75: -14.48930614 | K75: -14.45653412 | L75: -14.42145279 | M75: -14.38402755 | N75: -14.344223 | O75: -31.55200297 | P75: 4.342669494 | Q75: 4.3898322 | R75: 4.439523772 | S75: 4.491783687 | T75: 4.546652292 | U75: 4.604170815 | V75: 4.664381386 | W75: 4.727327056 | X75: 4.731018855 | Y75: 4.675501723 | Z75: 0 | AA75: 0 | AB75: 0 | AC75: 0 | AD75: 0 | AE75: 0 | AF75: 0 | AG75: 0 | AH75: 0 | AI75: 0
B76: Tax calculation base | C76: USD '000 | F76: =SUM($F75:F75) -> -14.66 | G76: =SUM($F75:G75) -> -29.23410113 | H76: =SUM($F75:H75) -> -43.78215804 | I76: =SUM($F75:I75) -> -58.30196074 | J76: =SUM($F75:J75) -> -72.79126688 | K76: =SUM($F75:K75) -> -87.24780101 | L76: =SUM($F75:L75) -> -101.6692538 | M76: =SUM($F75:M75) -> -116.0532813 | N76: =SUM($F75:N75) -> -130.3975043 | O76: =SUM($F75:O75) -> -161.9495073 | P76: =SUM($F75:P75) -> -157.6068378 | Q76: =SUM($F75:Q75) -> -153.2170056 | R76: =SUM($F75:R75) -> -148.7774819 | S76: =SUM($F75:S75) -> -144.2856982 | T76: =SUM($F75:T75) -> -139.7390459 | U76: =SUM($F75:U75) -> -135.1348751 | V76: =SUM($F75:V75) -> -130.4704937 | W76: =SUM($F75:W75) -> -125.7431666 | X76: =SUM($F75:X75) -> -121.0121478 | Y76: =SUM($F75:Y75) -> -116.336646 | Z76: =SUM($F75:Z75) -> -116.336646 | AA76: =SUM($F75:AA75) -> -116.336646 | AB76: =SUM($F75:AB75) -> -116.336646 | AC76: =SUM($F75:AC75) -> -116.336646 | AD76: =SUM($F75:AD75) -> -116.336646 | AE76: =SUM($F75:AE75) -> -116.336646 | AF76: =SUM($F75:AF75) -> -116.336646 | AG76: =SUM($F75:AG75) -> -116.336646 | AH76: =SUM($F75:AH75) -> -116.336646 | AI76: =SUM($F75:AI75) -> -116.336646
B77: Tax cumulated | C77: USD '000 | F77: =IF(F76<0,0,-F76*$M$4) -> 0 | G77: 0 | H77: 0 | I77: 0 | J77: 0 | K77: 0 | L77: 0 | M77: 0 | N77: 0 | O77: 0 | P77: 0 | Q77: 0 | R77: 0 | S77: 0 | T77: 0 | U77: 0 | V77: 0 | W77: 0 | X77: 0 | Y77: 0 | Z77: 0 | AA77: 0 | AB77: 0 | AC77: 0 | AD77: 0 | AE77: 0 | AF77: 0 | AG77: 0 | AH77: 0 | AI77: 0
B78: Tax p.a. | C78: USD '000 | F78: =F77-E77 -> 0 | G78: =G77-F77 -> 0 | H78: =H77-G77 -> 0 | I78: 0 | J78: 0 | K78: 0 | L78: 0 | M78: =M77-L77 -> 0 | N78: 0 | O78: =O77-N77 -> 0 | P78: 0 | Q78: 0 | R78: 0 | S78: 0 | T78: 0 | U78: 0 | V78: 0 | W78: 0 | X78: 0 | Y78: 0 | Z78: 0 | AA78: 0 | AB78: 0 | AC78: 0 | AD78: 0 | AE78: 0 | AF78: 0 | AG78: 0 | AH78: 0 | AI78: 0
B80: LCOE | E80: =E30 -> 0 | F80: =F30 -> 1 | G80: 2 | H80: 3 | I80: 4 | J80: 5 | K80: 6 | L80: 7 | M80: 8 | N80: 9 | O80: 10 | P80: 11 | Q80: 12 | R80: 13 | S80: 14 | T80: 15 | U80: 16 | V80: 17 | W80: 18 | X80: 19 | Y80: 20 | Z80: 21 | AA80: 22 | AB80: 23 | AC80: 24 | AD80: 25 | AE80: 26 | AF80: 27 | AG80: 28 | AH80: 29 | AI80: 30
B81: Discount factors | E81: =1/(1+$M$17)^E80 -> 1 | F81: =1/(1+$M$17)^F80 -> 0.9661835749 | G81: =1/(1+$M$17)^G80 -> 0.9335107004 | H81: 0.9019427057 | I81: 0.8714422277 | J81: 0.8419731669 | K81: 0.8135006443 | L81: 0.7859909607 | M81: 0.7594115562 | N81: 0.7337309722 | O81: 0.7089188137 | P81: 0.6849457137 | Q81: 0.6617832983 | R81: 0.6394041529 | S81: 0.6177817903 | T81: 0.5968906186 | U81: 0.5767059117 | V81: 0.5572037794 | W81: 0.5383611396 | X81: 0.5201556904 | Y81: 0.5025658844 | Z81: 0.4855709028 | AA81: 0.4691506308 | AB81: 0.4532856336 | AC81: 0.4379571339 | AD81: 0.4231469893 | AE81: 0.4088376708 | AF81: 0.3950122423 | AG81: 0.3816543404 | AH81: 0.368748155 | AI81: 0.3562784106
B82: Generation | C82: MWh | F82: =IF($L$9>=G57,$M$10*$H$13,0) -> 0
B83: Generation costs | C83: USD '000 | E83: =H16 -> 186 | F83: =-F42 -> 3.2 | G83: =-G42 -> 3.2 | H83: 3.2 | I83: 3.2 | J83: 3.2 | K83: 3.2 | L83: 3.2 | M83: 3.2 | N83: 3.2 | O83: 20.45 | P83: 3.2 | Q83: 3.2 | R83: 3.2 | S83: 3.2 | T83: 3.2 | U83: 3.2 | V83: 3.2 | W83: 3.2 | X83: 3.2 | Y83: 3.2 | Z83: 0 | AA83: 0 | AB83: 0 | AC83: 0 | AD83: 0 | AE83: 0 | AF83: 0 | AG83: 0 | AH83: 0 | AI83: 0
E85: =H16 -> 186 | F85: =-F81*F42 -> 3.09178744 | G85: =-G81*G42 -> 2.987234241 | H85: 2.886216658 | I85: 2.788615129 | J85: 2.694314134 | K85: 2.603202062 | L85: 2.515171074 | M85: 2.43011698 | N85: 2.347939111 | O85: 14.49738974 | P85: 2.191826284 | Q85: 2.117706555 | R85: 2.046093289 | S85: 1.976901729 | T85: 1.91004998 | U85: 1.845458917 | V85: 1.783052094 | W85: 1.722755647 | X85: 1.664498209 | Y85: 1.60821083 | Z85: 0 | AA85: 0 | AB85: 0 | AC85: 0 | AD85: 0 | AE85: 0 | AF85: 0 | AG85: 0 | AH85: 0 | AI85: 0 | AJ85: =SUM(E85:AI85) -> 243.7085401 | AK85: Discounted total cost
E86: =E81*E31 -> 0 | F86: =F81*F31 -> 86.95652174 | G86: =G81*G31 -> 83.42785129 | H86: 80.04237327 | I86: 76.79427696 | J86: 73.67798746 | K86: 70.68815609 | L86: 67.8196512 | M86: 65.06754941 | N86: 62.42712712 | O86: 59.8938524 | P86: 57.46337723 | Q86: 55.13153003 | R86: 52.89430853 | S86: 50.74787282 | T86: 48.68853885 | U86: 46.71277205 | V86: 44.8171813 | W86: 42.99851308 | X86: 41.25364588 | Y86: 39.57958489 | Z86: 0 | AA86: 0 | AB86: 0 | AC86: 0 | AD86: 0 | AE86: 0 | AF86: 0 | AG86: 0 | AH86: 0 | AI86: 0 | AJ86: =SUM(E86:AI86) -> 1207.082672 | AK86: Discounted total energy
AJ87: =AJ85/AJ86 -> 0.2018987977

Sheet Sensitivity
B2: Sensitivities
B4: Equipment Cost | E4: [%] | F4: 0
B5: Energy Yield | E5: [%] | F5: 0
B6: OPEX | E6: [%] | F6: 0
B7: Debt Share | E7: [%] | F7: 0
B8: Compound Interest Rate | E8: [bp] | F8: 0
B10: Sensitivity Parameter | G10: LCOE [$/MWh]
E11: -0.1 | F11: -0.05 | G11: 0 | H11: 0.05 | I11: 0.1
B12: =B4 -> Equipment Cost | D12: ='Cash Flow'!C24 -> 201.8987977 | E12: 182.839751 | F12: 192.3692743 | G12: 201.8987977 | H12: 211.428321 | I12: 220.9578444
E13: -0.1 | F13: -0.05 | G13: 0 | H13: 0.05 | I13: 0.1
B14: =B5 -> Energy Yield | D14: ='Cash Flow'!C24 -> 201.8987977 | E14: 224.3319974 | F14: 212.5250502 | G14: 201.8987977 | H14: 192.2845692 | I14: 183.5443615
E15: -0.1 | F15: -0.05 | G15: 0 | H15: 0.05 | I15: 0.1
B16: =B6 -> OPEX | D16: ='Cash Flow'!C24 -> 201.8987977 | E16: 198.1310615 | F16: 200.0149296 | G16: 201.8987977 | H16: 203.7826658 | I16: 205.6665339
E17: -0.1 | F17: -0.05 | G17: 0 | H17: 0.05 | I17: 0.1
B18: =B7 -> Debt Share | D18: ='Cash Flow'!C24 -> 201.8987977 | E18: 203.9209919 | F18: 202.9082668 | G18: 201.8987977 | H18: 200.8925954 | I18: 199.8896707
E19: =E21 -> -20 | F19: =F21 -> -10 | G19: =G21 -> 0 | H19: =H21 -> 10 | I19: =I21 -> 20
E20: =E19/('Cash Flow'!$M$15*10000) -> -0.1 | F20: =F19/('Cash Flow'!$M$15*10000) -> -0.05 | G20: =G19/('Cash Flow'!$M$15*10000) -> 0 | H20: =H19/('Cash Flow'!$M$15*10000) -> 0.05 | I20: =I19/('Cash Flow'!$M$15*10000) -> 0.1
E21: =E85 -> -20 | F21: =F85 -> -10 | G21: =G85 -> 0 | H21: =H85 -> 10 | I21: =I85 -> 20
B22: Interest rate | D22: ='Cash Flow'!C24 -> 201.8987977 | E22: 200.5579224 | F22: 201.2946836 | G22: 201.8987977 | H22: 202.5714148 | I22: 203.3129667
B24: Sensitivity Parameter | G24: RoE [%]
E25: -0.1 | F25: -0.05 | G25: 0 | H25: 0.05 | I25: 0.1
B26: =B12 -> Equipment Cost | D26: =equityIRR -> -0.1582239108 | E26: -0.1242867006 | F26: -0.1571414302 | G26: -0.1582239108
E27: -0.1 | F27: -0.05 | G27: 0 | H27: 0.05 | I27: 0.1
B28: =B14 -> Energy Yield | D28: =equityIRR -> -0.1582239108 | G28: -0.1582239108 | H28: -0.1567311118 | I28: -0.1278520173
E29: -0.1 | F29: -0.05 | G29: 0 | H29: 0.05 | I29: 0.1
B30: =B16 -> OPEX | D30: =equityIRR -> -0.1582239108 | E30: -0.1439179555 | F30: -0.1509050807 | G30: -0.1582239108 | H30: -0.1659024961
E31: -0.1 | F31: -0.05 | G31: 0 | H31: 0.05 | I31: 0.1
B32: =B18 -> Debt Share | D32: =equityIRR -> -0.1582239108 | E32: -0.1550444676 | F32: -0.1502842896 | G32: -0.1582239108 | H32: -0.1665138795 | I32: -0.1751081495
E33: =E19 -> -20 | F33: =F19 -> -10 | G33: =G19 -> 0 | H33: =H19 -> 10 | I33: =I19 -> 20
E34: =E20 -> -0.1 | F34: -0.05 | G34: 0 | H34: 0.05 | I34: 0.1
E35: -20 | F35: -10 | G35: 0 | H35: 10 | I35: 20
B36: =B22 -> Interest rate | D36: =equityIRR -> -0.1582239108 | E36: -0.1549895586 | F36: -0.1567631463 | G36: -0.1582239108 | H36: -0.1598570243 | I36: -0.1616654761
B38: Sensitivity Parameter | G38: Min-DSCR
E39: -0.1 | F39: -0.05 | G39: 0 | H39: 0.05 | I39: 0.1
B40: =B26 -> Equipment Cost | D40: ='Cash Flow'!M26 -> 0.7067583171 | E40: 0.8382026204 | F40: 0.7605150396 | G40: 0.7067583171 | H40: 0.6497560196 | I40: 0.5979357491
E41: -0.1 | F41: -0.05 | G41: 0 | H41: 0.05 | I41: 0.1
B42: =B28 -> Energy Yield | D42: ='Cash Flow'!M26 -> 0.7067583171 | E42: 0.5699926682 | F42: 0.6383754927 | G42: 0.7067583171 | H42: 0.7658389112 | I42: 0.8400353886
E43: -0.1 | F43: -0.05 | G43: 0 | H43: 0.05 | I43: 0.1
B44: =B30 -> OPEX | D44: ='Cash Flow'!M26 -> 0.7067583171 | E44: 0.758343801 | F44: 0.732551059 | G44: 0.7067583171 | H44: 0.6809655752 | I44: 0.6551728332
E45: -0.1 | F45: -0.05 | G45: 0 | H45: 0.05 | I45: 0.1
B46: =B32 -> Debt Share | D46: ='Cash Flow'!M26 -> 0.7067583171 | E46: 0.7764355105 | F46: 0.7434590472 | G46: 0.7067583171 | H46: 0.6735528946 | I46: 0.6433661469
E47: =E33 -> -20 | F47: =F33 -> -10 | G47: =G33 -> 0 | H47: =H33 -> 10 | I47: =I33 -> 20
E48: =E34 -> -0.1 | F48: -0.05 | G48: 0 | H48: 0.05 | I48: 0.1
E49: -20 | F49: -10 | G49: 0 | H49: 10 | I49: 20
B50: =B36 -> Interest rate | D50: ='Cash Flow'!M26 -> 0.7067583171 | E50: 0.719177523 | F50: 0.7123078573 | G50: 0.7067583171 | H50: 0.7006660752 | I50: 0.6940531215
E84: -0.1 | F84: -0.05 | G84: 0 | H84: 0.05 | I84: 0.1
E85: =-1000*'Cash Flow'!M15 -> -20 | F85: =-500*'Cash Flow'!$M$15 -> -10 | G85: =0 -> 0 | H85: =500*'Cash Flow'!$M$15 -> 10 | I85: =1000*'Cash Flow'!$M$15 -> 20

Sheet Acronyms
A1: a | B1: year
A2: BOS | B2: Balance of System
A3: CapEX | B3: Capital Expenses
A4: DC | B4: Direct Current
A5: DSCR | B5: Debt Service Coverage Ratio
A6: DSRA | B6: Debt Service Reserve Account
A7: EBIDA | B7: Earnings Before Interest, Depreciation and Amortization
A8: EBITDA | B8: Earnings Before Interest, Taxes, Depreciation and Amortization
A9: FIT | B9: Feed-in-Tariff
A10: IDC | B10: Interest During Construction
A11: IRR | B11: Internal Rate of Return
A12: kWh | B12: kilowatt-hour
A13: kWp | B13: kilowatt peak
A14: LCOE | B14: Levelised Cost of Energy
A15: Min | B15: Minimum
A16: O&M | B16: Operation and Maintenance
A17: p.a. | B17: per annum
A18: PPA | B18: Power Purchase Agreement
A19: Spec. | B19: Specific
A20: T€ | B20: Thousands of Euros
A21: WACC | B21: Weighted Average Cost of Capital
